[Event "Open NK Rapid 2025 bord 26-50"]
[Site "Helmond, Netherlands"]
[Date "2025.05.03"]
[Round "1.18"]
[White "Klein, Ron"]
[Black "Aders, Maarten"]
[Result "1-0"]
[TimeControl "15 min +5 sec increment"]
[WhiteFideId "1014668"]
[BlackFideId "1079379"]
[WhiteElo "2014"]
[BlackElo "1707"]

1. d4 {[%clk 00:15:05]} {[%emt 00:00:04]} d5 {[%clk 00:15:09]} {[%emt
00:00:02]} 2. Nf3 {[%clk 00:15:06]} {[%emt 00:00:04]} Bg4 {[%clk 00:15:12]}
{[%emt 00:00:02]} 3. Ne5 {[%clk 00:15:03]} {[%emt 00:00:07]} Bf5 {[%clk
00:15:12]} {[%emt 00:00:07]} 4. c4 {[%clk 00:14:54]} {[%emt 00:00:14]} f6
{[%clk 00:15:12]} {[%emt 00:00:04]} 5. Nf3 {[%clk 00:14:55]} {[%emt 00:00:04]}
Bg4 {[%clk 00:14:57]} {[%emt 00:00:21]} 6. Nc3 {[%clk 00:14:36]} {[%emt
00:00:23]} Bxf3 {[%clk 00:14:59]} {[%emt 00:00:03]} 7. exf3 {[%clk 00:14:39]}
{[%emt 00:00:02]} e6 {[%clk 00:14:43]} {[%emt 00:00:22]} 8. cxd5 {[%clk
00:14:39]} {[%emt 00:00:05]} exd5 {[%clk 00:14:45]} {[%emt 00:00:03]} 9. Qb3
{[%clk 00:14:31]} {[%emt 00:00:12]} Qe7+ {[%clk 00:14:21]} {[%emt 00:00:29]} 10.
Be3 {[%clk 00:14:26]} {[%emt 00:00:10]} c6 {[%clk 00:14:25]} {[%emt 00:00:01]}
11. Bd3 {[%clk 00:14:12]} {[%emt 00:00:19]} Qb4 {[%clk 00:14:22]} {[%emt
00:00:09]} 12. Qc2 {[%clk 00:14:05]} {[%emt 00:00:11]} Bd6 {[%clk 00:13:50]}
{[%emt 00:00:37]} 13. a3 {[%clk 00:14:05]} {[%emt 00:00:06]} Qb6 {[%clk
00:13:51]} {[%emt 00:00:04]} 14. O-O {[%clk 00:13:40]} {[%emt 00:00:29]} Qc7
{[%clk 00:13:30]} {[%emt 00:00:26]} 15. g3 {[%clk 00:11:33]} {[%emt 00:02:12]}
Ne7 {[%clk 00:13:18]} {[%emt 00:00:17]} 16. Bxh7 {[%clk 00:11:29]} {[%emt
00:00:09]} Nd7 {[%clk 00:13:05]} {[%emt 00:00:19]} 17. Bg6+ {[%clk 00:11:15]}
{[%emt 00:00:17]} Nxg6 {[%clk 00:12:39]} {[%emt 00:00:31]} 18. Qxg6+ {[%clk
00:11:18]} {[%emt 00:00:02]} Kf8 {[%clk 00:12:43]} {[%emt 00:00:02]} 19. Rac1
{[%clk 00:11:15]} {[%emt 00:00:08]} Qd8 {[%clk 00:12:33]} {[%emt 00:00:16]} 20.
Rfe1 {[%clk 00:11:01]} {[%emt 00:00:18]} Qe8 {[%clk 00:12:35]} {[%emt
00:00:03]} 21. Qf5 {[%clk 00:10:07]} {[%emt 00:00:58]} Rd8 {[%clk 00:11:48]}
{[%emt 00:00:53]} 22. Bf4 {[%clk 00:09:59]} {[%emt 00:00:13]} Qh5 {[%clk
00:11:49]} {[%emt 00:00:04]} 23. Bxd6+ {[%clk 00:09:58]} {[%emt 00:00:06]} 1-0

[Event "Open NK Rapid 2025 bord 26-50"]
[Site "Helmond, Netherlands"]
[Date "2025.05.03"]
[Round "1.19"]
[White "Van Soest, Sjoerd"]
[Black "Vogel, Jaap"]
[Result "0-1"]
[TimeControl "15 min +5 sec increment"]
[WhiteFideId "1099256"]
[BlackFideId "1000764"]
[WhiteElo "1706"]
[BlackElo "2006"]

1. e4 {[%clk 00:15:06]} {[%emt 00:00:03]} e6 {[%clk 00:15:09]} {[%emt
00:00:01]} 2. d4 {[%clk 00:15:09]} {[%emt 00:00:02]} d5 {[%clk 00:15:14]} 3. e5
{[%clk 00:15:10]} {[%emt 00:00:05]} c5 {[%clk 00:15:17]} {[%emt 00:00:02]} 4.
c3 {[%clk 00:15:10]} {[%emt 00:00:04]} Nc6 {[%clk 00:15:20]} {[%emt 00:00:02]}
5. Nf3 {[%clk 00:15:12]} {[%emt 00:00:03]} Bd7 {[%clk 00:15:25]} 6. Be2 {[%clk
00:14:48]} {[%emt 00:00:29]} Nge7 {[%clk 00:15:28]} {[%emt 00:00:03]} 7. O-O
{[%clk 00:14:46]} {[%emt 00:00:06]} Nf5 {[%clk 00:15:31]} {[%emt 00:00:03]} 8.
a4 {[%clk 00:13:32]} {[%emt 00:01:20]} a6 {[%clk 00:14:21]} {[%emt 00:01:15]} 9.
Na3 {[%clk 00:12:36]} {[%emt 00:01:00]} Qb6 {[%clk 00:12:54]} {[%emt 00:01:32]}
10. g4 {[%clk 00:10:52]} {[%emt 00:01:48]} Nh6 {[%clk 00:12:58]} {[%emt
00:00:02]} 11. Nc2 {[%clk 00:10:40]} {[%emt 00:00:17]} Nxg4 {[%clk 00:12:42]}
{[%emt 00:00:20]} 12. Ng5 {[%clk 00:10:16]} {[%emt 00:00:30]} Nh6 {[%clk
00:12:35]} {[%emt 00:00:12]} 13. f4 {[%clk 00:10:01]} {[%emt 00:00:20]} cxd4
{[%clk 00:12:15]} {[%emt 00:00:24]} 14. cxd4 {[%clk 00:09:59]} {[%emt
00:00:08]} Nf5 {[%clk 00:12:15]} {[%emt 00:00:05]} 15. Nf3 {[%clk 00:09:05]}
{[%emt 00:00:58]} Ncxd4 {[%clk 00:11:00]} {[%emt 00:01:20]} 16. Nfxd4 {[%clk
00:08:43]} {[%emt 00:00:28]} Bc5 {[%clk 00:11:04]} {[%emt 00:00:01]} 17. Kh1
{[%clk 00:08:36]} {[%emt 00:00:11]} Nxd4 {[%clk 00:10:41]} {[%emt 00:00:28]} 18.
a5 {[%clk 00:07:31]} {[%emt 00:01:11]} Qa7 {[%clk 00:10:45]} {[%emt 00:00:01]}
19. b4 {[%clk 00:07:26]} {[%emt 00:00:09]} Nxc2 {[%clk 00:10:48]} {[%emt
00:00:02]} 20. Qxc2 {[%clk 00:07:12]} {[%emt 00:00:20]} Bxb4 {[%clk 00:10:48]}
{[%emt 00:00:05]} 21. Bd3 {[%clk 00:05:52]} {[%emt 00:01:25]} Rc8 {[%clk
00:08:42]} {[%emt 00:02:11]} 22. Qb1 {[%clk 00:05:33]} {[%emt 00:00:24]} Be7
{[%clk 00:07:46]} {[%emt 00:01:01]} 23. f5 {[%clk 00:05:19]} {[%emt 00:00:19]}
exf5 {[%clk 00:07:28]} {[%emt 00:00:23]} 24. Bxf5 {[%clk 00:05:21]} {[%emt
00:00:02]} Bxf5 {[%clk 00:07:09]} {[%emt 00:00:24]} 25. Qxf5 {[%clk 00:05:01]}
{[%emt 00:00:25]} O-O {[%clk 00:07:12]} {[%emt 00:00:03]} 26. Ra3 {[%clk
00:03:46]} {[%emt 00:01:20]} Rxc1 {[%clk 00:06:23]} {[%emt 00:00:54]} 0-1

[Event "Open NK Rapid 2025 bord 26-50"]
[Site "Helmond, Netherlands"]
[Date "2025.05.03"]
[Round "1.20"]
[White "Gotes Perez, Jaume"]
[Black "Calvi, Elias Francesco"]
[Result "0-1"]
[TimeControl "15 min +5 sec increment"]
[WhiteFideId "2276801"]
[BlackFideId "34625704"]
[WhiteElo "2005"]
[BlackElo "1699"]

1. e4 {[%clk 00:15:09]} c5 {[%clk 00:15:09]} {[%emt 00:00:02]} 2. Nf3 {[%clk
00:15:12]} {[%emt 00:00:02]} e6 {[%clk 00:15:13]} {[%emt 00:00:01]} 3. d4
{[%clk 00:15:15]} {[%emt 00:00:02]} cxd4 {[%clk 00:15:16]} {[%emt 00:00:01]} 4.
Nxd4 {[%clk 00:15:19]} {[%emt 00:00:02]} a6 {[%clk 00:15:20]} {[%emt 00:00:01]}
5. c4 {[%clk 00:14:51]} {[%emt 00:00:32]} Nf6 {[%clk 00:15:21]} {[%emt
00:00:04]} 6. Bd3 {[%clk 00:14:49]} {[%emt 00:00:08]} Bc5 {[%clk 00:15:22]}
{[%emt 00:00:04]} 7. Nb3 {[%clk 00:14:42]} {[%emt 00:00:12]} Ba7 {[%clk
00:15:25]} {[%emt 00:00:02]} 8. O-O {[%clk 00:14:37]} {[%emt 00:00:10]} Qc7
{[%clk 00:15:27]} {[%emt 00:00:03]} 9. Nc3 {[%clk 00:14:16]} {[%emt 00:00:25]}
Nc6 {[%clk 00:15:29]} {[%emt 00:00:03]} 10. Qe2 {[%clk 00:13:53]} {[%emt
00:00:28]} h5 {[%clk 00:15:20]} {[%emt 00:00:15]} 11. Be3 {[%clk 00:13:17]}
{[%emt 00:00:40]} Ng4 {[%clk 00:15:23]} {[%emt 00:00:03]} 12. g3 {[%clk
00:12:55]} {[%emt 00:00:27]} Nxe3 {[%clk 00:14:53]} {[%emt 00:00:35]} 13. fxe3
{[%clk 00:12:58]} {[%emt 00:00:02]} Ne5 {[%clk 00:14:27]} {[%emt 00:00:31]} 14.
Rad1 {[%clk 00:12:19]} {[%emt 00:00:44]} h4 {[%clk 00:14:05]} {[%emt 00:00:27]}
15. g4 {[%clk 00:10:48]} {[%emt 00:01:36]} h3 {[%clk 00:14:00]} {[%emt
00:00:10]} 16. Rf4 {[%clk 00:09:50]} {[%emt 00:01:03]} Nxd3 {[%clk 00:13:57]}
{[%emt 00:00:08]} 17. Qxd3 {[%clk 00:09:47]} {[%emt 00:00:08]} Qxf4 {[%clk
00:14:00]} {[%emt 00:00:02]} 18. Ne2 {[%clk 00:09:10]} {[%emt 00:00:42]} Bxe3+
{[%clk 00:13:55]} {[%emt 00:00:09]} 0-1

[Event "Open NK Rapid 2025 bord 26-50"]
[Site "Helmond, Netherlands"]
[Date "2025.05.03"]
[Round "1.21"]
[White "Maes, Lander"]
[Black "Husers, Yannic"]
[Result "0-1"]
[TimeControl "15 min +5 sec increment"]
[WhiteFideId "264741"]
[BlackFideId "1043587"]
[WhiteElo "1694"]
[BlackElo "2002"]

1. e4 {[%clk 00:15:08]} {[%emt 00:00:01]} e5 {[%clk 00:15:07]} {[%emt
00:00:03]} 2. Nf3 {[%clk 00:15:12]} {[%emt 00:00:01]} Nc6 {[%clk 00:15:06]}
{[%emt 00:00:07]} 3. Bc4 {[%clk 00:15:16]} {[%emt 00:00:01]} Nf6 {[%clk
00:15:04]} {[%emt 00:00:07]} 4. Ng5 {[%clk 00:15:20]} d5 {[%clk 00:15:01]}
{[%emt 00:00:08]} 5. exd5 {[%clk 00:15:24]} {[%emt 00:00:01]} Na5 {[%clk
00:14:59]} {[%emt 00:00:06]} 6. Bb5+ {[%clk 00:15:29]} c6 {[%clk 00:14:57]}
{[%emt 00:00:07]} 7. dxc6 {[%clk 00:15:33]} {[%emt 00:00:01]} bxc6 {[%clk
00:14:56]} {[%emt 00:00:07]} 8. Qf3 {[%clk 00:15:36]} cxb5 {[%clk 00:14:50]}
{[%emt 00:00:13]} 9. Qxa8 {[%clk 00:15:20]} {[%emt 00:00:20]} Qc7 {[%clk
00:14:48]} {[%emt 00:00:07]} 10. c3 {[%clk 00:13:30]} {[%emt 00:01:55]} Nc6
{[%clk 00:14:43]} {[%emt 00:00:10]} 11. a4 {[%clk 00:11:55]} {[%emt 00:01:40]}
b4 {[%clk 00:13:43]} {[%emt 00:01:05]} 12. d3 {[%clk 00:10:36]} {[%emt
00:01:24]} Bc5 {[%clk 00:13:25]} {[%emt 00:00:24]} 13. d4 {[%clk 00:07:52]}
{[%emt 00:02:49]} exd4 {[%clk 00:13:23]} {[%emt 00:00:06]} 14. Bf4 {[%clk
00:07:22]} {[%emt 00:00:36]} Qd7 {[%clk 00:13:19]} {[%emt 00:00:08]} 15. cxd4
{[%clk 00:05:38]} {[%emt 00:01:49]} Bxd4 {[%clk 00:12:58]} {[%emt 00:00:25]} 16.
Bd6 {[%clk 00:04:59]} {[%emt 00:00:44]} Nd5 {[%clk 00:07:30]} {[%emt 00:05:33]}
17. a5 {[%clk 00:03:43]} {[%emt 00:01:23]} f6 {[%clk 00:07:14]} {[%emt
00:00:20]} 18. Ne6 {[%clk 00:03:11]} {[%emt 00:00:38]} Qxe6+ {[%clk 00:07:06]}
{[%emt 00:00:12]} 19. Kd1 {[%clk 00:02:13]} {[%emt 00:01:03]} Qd7 {[%clk
00:07:04]} {[%emt 00:00:07]} 20. Re1+ {[%clk 00:02:11]} {[%emt 00:00:07]} Kf7
{[%clk 00:07:05]} {[%emt 00:00:04]} 21. Nd2 {[%clk 00:01:35]} {[%emt 00:00:41]}
Qxd6 {[%clk 00:06:26]} {[%emt 00:00:45]} 22. f3 {[%clk 00:01:22]} {[%emt
00:00:18]} Bxb2 {[%clk 00:06:09]} {[%emt 00:00:22]} 23. Rb1 {[%clk 00:00:42]}
{[%emt 00:00:45]} Nc3+ {[%clk 00:06:00]} {[%emt 00:00:13]} 24. Kc2 {[%clk
00:00:46]} {[%emt 00:00:02]} Bf5+ {[%clk 00:05:50]} {[%emt 00:00:15]} 25. Kxb2
{[%clk 00:00:27]} {[%emt 00:00:23]} Qxd2+ {[%clk 00:05:48]} {[%emt 00:00:07]}
26. Kb3 {[%clk 00:00:18]} {[%emt 00:00:15]} Qa2# {[%clk 00:05:42]} {[%emt
00:00:05]} 0-1

[Event "Open NK Rapid 2025 bord 26-50"]
[Site "Helmond, Netherlands"]
[Date "2025.05.03"]
[Round "1.22"]
[White "Jansz, Wilfred"]
[Black "Gorny, Wiktor"]
[Result "1-0"]
[TimeControl "15 min +5 sec increment"]
[WhiteFideId "40107353"]
[BlackFideId "40110680"]
[WhiteElo "1996"]
[BlackElo "1693"]

1. e4 {[%clk 00:15:08]} {[%emt 00:00:01]} c5 {[%clk 00:15:08]} {[%emt
00:00:03]} 2. Nf3 {[%clk 00:15:11]} {[%emt 00:00:02]} Nc6 {[%clk 00:15:03]}
{[%emt 00:00:09]} 3. d4 {[%clk 00:15:14]} {[%emt 00:00:03]} cxd4 {[%clk
00:15:06]} {[%emt 00:00:02]} 4. Nxd4 {[%clk 00:15:16]} {[%emt 00:00:03]} e6
{[%clk 00:15:07]} {[%emt 00:00:04]} 5. Nc3 {[%clk 00:15:10]} {[%emt 00:00:12]}
Qb6 {[%clk 00:14:58]} {[%emt 00:00:13]} 6. Nb3 {[%clk 00:14:58]} {[%emt
00:00:17]} Bb4 {[%clk 00:13:58]} {[%emt 00:01:04]} 7. Be3 {[%clk 00:14:41]}
{[%emt 00:00:22]} Qc7 {[%clk 00:13:20]} {[%emt 00:00:44]} 8. Bd3 {[%clk
00:14:28]} {[%emt 00:00:18]} Bxc3+ {[%clk 00:13:15]} {[%emt 00:00:10]} 9. bxc3
{[%clk 00:14:30]} {[%emt 00:00:03]} Nf6 {[%clk 00:13:19]} 10. O-O {[%clk
00:13:50]} {[%emt 00:00:46]} O-O {[%clk 00:13:22]} {[%emt 00:00:02]} 11. Bg5
{[%clk 00:12:58]} {[%emt 00:00:57]} Qe5 {[%clk 00:11:59]} {[%emt 00:01:27]} 12.
Bd2 {[%clk 00:12:18]} {[%emt 00:00:45]} d5 {[%clk 00:11:09]} {[%emt 00:00:55]}
13. f4 {[%clk 00:11:49]} {[%emt 00:00:34]} Qc7 {[%clk 00:10:34]} {[%emt
00:00:40]} 14. e5 {[%clk 00:11:30]} {[%emt 00:00:25]} Ne4 {[%clk 00:10:25]}
{[%emt 00:00:14]} 15. Qe1 {[%clk 00:09:02]} {[%emt 00:02:34]} Nxd2 {[%clk
00:09:52]} {[%emt 00:00:37]} 16. Nxd2 {[%clk 00:08:46]} {[%emt 00:00:20]} Ne7
{[%clk 00:09:42]} {[%emt 00:00:15]} 17. Rf3 {[%clk 00:08:01]} {[%emt 00:00:51]}
Ng6 {[%clk 00:09:14]} {[%emt 00:00:33]} 18. g4 {[%clk 00:07:41]} {[%emt
00:00:25]} Qxc3 {[%clk 00:08:01]} {[%emt 00:01:18]} 19. Kh1 {[%clk 00:05:27]}
{[%emt 00:02:19]} Bd7 {[%clk 00:07:07]} {[%emt 00:00:59]} 20. Bxg6 {[%clk
00:05:23]} {[%emt 00:00:09]} Qxa1 {[%clk 00:06:28]} {[%emt 00:00:44]} 21. Bxh7+
{[%clk 00:04:58]} {[%emt 00:00:30]} Kxh7 {[%clk 00:06:19]} {[%emt 00:00:12]} 22.
Rh3+ {[%clk 00:04:59]} {[%emt 00:00:05]} Kg6 {[%clk 00:05:46]} {[%emt
00:00:38]} 23. Qxa1 {[%clk 00:04:49]} {[%emt 00:00:16]} f6 {[%clk 00:05:35]}
{[%emt 00:00:15]} 24. Qc3 {[%clk 00:03:25]} {[%emt 00:01:30]} Rac8 {[%clk
00:05:03]} {[%emt 00:00:37]} 25. Qd3+ {[%clk 00:03:28]} {[%emt 00:00:02]} f5
{[%clk 00:04:52]} {[%emt 00:00:15]} 26. gxf5+ {[%clk 00:03:19]} {[%emt
00:00:15]} Rxf5 {[%clk 00:04:36]} {[%emt 00:00:20]} 27. Nf3 {[%clk 00:03:09]}
{[%emt 00:00:15]} Kf7 {[%clk 00:03:45]} {[%emt 00:00:57]} 28. Ng5+ {[%clk
00:03:10]} {[%emt 00:00:04]} Ke7 {[%clk 00:02:56]} {[%emt 00:00:54]} 29. Qa3+
{[%clk 00:03:10]} {[%emt 00:00:05]} Kd8 {[%clk 00:02:51]} {[%emt 00:00:08]} 30.
Rh8+ {[%clk 00:02:53]} {[%emt 00:00:23]} Kc7 {[%clk 00:02:53]} {[%emt
00:00:03]} 31. Qd6# {[%clk 00:02:56]} {[%emt 00:00:03]} 1-0

[Event "Open NK Rapid 2025 bord 26-50"]
[Site "Helmond, Netherlands"]
[Date "2025.05.03"]
[Round "1.23"]
[White "Londhe, Svar"]
[Black "Schleipfenbauer, Bent"]
[Result "0-1"]
[TimeControl "15 min +5 sec increment"]
[WhiteFideId "40114937"]
[BlackFideId "1048759"]
[WhiteElo "1691"]
[BlackElo "1992"]

1. e4 {[%clk 00:15:08]} {[%emt 00:00:01]} c5 {[%clk 00:15:10]} 2. Nf3 {[%clk
00:15:11]} {[%emt 00:00:02]} Nc6 {[%clk 00:15:15]} 3. d4 {[%clk 00:15:14]}
{[%emt 00:00:02]} cxd4 {[%clk 00:15:19]} {[%emt 00:00:01]} 4. Nxd4 {[%clk
00:15:17]} {[%emt 00:00:01]} Nf6 {[%clk 00:15:23]} 5. Nc3 {[%clk 00:15:21]}
{[%emt 00:00:02]} e5 {[%clk 00:15:27]} {[%emt 00:00:01]} 6. Nf3 {[%clk
00:15:23]} {[%emt 00:00:02]} Bb4 {[%clk 00:15:15]} {[%emt 00:00:16]} 7. Bd3
{[%clk 00:14:51]} {[%emt 00:00:37]} O-O {[%clk 00:14:28]} {[%emt 00:00:52]} 8.
O-O {[%clk 00:14:23]} {[%emt 00:00:33]} Bxc3 {[%clk 00:14:28]} {[%emt
00:00:06]} 9. bxc3 {[%clk 00:14:26]} {[%emt 00:00:02]} d5 {[%clk 00:14:30]}
{[%emt 00:00:02]} 10. Bb5 {[%clk 00:11:18]} {[%emt 00:03:14]} dxe4 {[%clk
00:09:29]} {[%emt 00:05:06]} 11. Bxc6 {[%clk 00:11:07]} {[%emt 00:00:16]} bxc6
{[%clk 00:09:18]} {[%emt 00:00:16]} 12. Qxd8 {[%clk 00:10:45]} {[%emt
00:00:27]} Rxd8 {[%clk 00:09:20]} {[%emt 00:00:02]} 13. Nxe5 {[%clk 00:10:48]}
{[%emt 00:00:03]} Ba6 {[%clk 00:08:49]} {[%emt 00:00:36]} 14. Re1 {[%clk
00:10:23]} {[%emt 00:00:30]} Rd6 {[%clk 00:08:08]} {[%emt 00:00:45]} 15. Bf4
{[%clk 00:08:58]} {[%emt 00:01:30]} Re6 {[%clk 00:08:06]} {[%emt 00:00:07]} 16.
Bg3 {[%clk 00:06:04]} {[%emt 00:02:59]} h5 {[%clk 00:07:38]} {[%emt 00:00:34]}
17. h4 {[%clk 00:05:23]} {[%emt 00:00:45]} Rae8 {[%emt 00:03:59]} 18. Rad1
{[%clk 00:03:32]} Rxe5 {[%clk 00:05:32]} {[%emt 00:00:13]} 19. Bxe5 {[%clk
00:03:36]} {[%emt 00:00:01]} Rxe5 {[%clk 00:05:36]} 20. f3 {[%clk 00:03:03]}
{[%emt 00:00:37]} e3 {[%clk 00:05:04]} {[%emt 00:00:38]} 21. Rd6 {[%clk
00:02:41]} {[%emt 00:00:26]} Bb5 {[%clk 00:04:26]} {[%emt 00:00:43]} 22. Rd4
{[%clk 00:01:09]} {[%emt 00:01:36]} c5 {[%clk 00:04:20]} {[%emt 00:00:13]} 23.
Rd8+ {[%clk 00:00:30]} {[%emt 00:00:44]} Kh7 {[%clk 00:04:22]} {[%emt
00:00:03]} 24. Rb8 {[%clk 00:00:26]} {[%emt 00:00:09]} a6 {[%clk 00:04:19]}
{[%emt 00:00:08]} 25. Rd8 {[%clk 00:00:15]} {[%emt 00:00:15]} Nd5 {[%clk
00:04:12]} {[%emt 00:00:12]} 0-1

[Event "Open NK Rapid 2025 bord 26-50"]
[Site "Helmond, Netherlands"]
[Date "2025.05.03"]
[Round "1.24"]
[White "Den Heijer, Rolinde"]
[Black "De Wit, Jim"]
[Result "1-0"]
[TimeControl "15 min +5 sec increment"]
[WhiteFideId "1068300"]
[BlackFideId "1097326"]
[WhiteElo "1991"]
[BlackElo "1690"]

1. e4 {[%clk 00:15:09]} c5 {[%clk 00:15:09]} {[%emt 00:00:02]} 2. Nf3 {[%clk
00:15:13]} {[%emt 00:00:01]} a6 {[%clk 00:15:13]} {[%emt 00:00:02]} 3. c3
{[%clk 00:15:13]} {[%emt 00:00:04]} d5 {[%clk 00:15:16]} {[%emt 00:00:02]} 4.
exd5 {[%clk 00:15:15]} {[%emt 00:00:03]} Qxd5 {[%clk 00:15:18]} {[%emt
00:00:02]} 5. d4 {[%clk 00:15:13]} {[%emt 00:00:08]} e6 {[%clk 00:15:20]}
{[%emt 00:00:03]} 6. Be2 {[%clk 00:15:03]} {[%emt 00:00:14]} Nf6 {[%clk
00:15:11]} {[%emt 00:00:14]} 7. O-O {[%clk 00:15:03]} {[%emt 00:00:05]} Nc6
{[%clk 00:15:07]} {[%emt 00:00:10]} 8. Be3 {[%clk 00:14:45]} {[%emt 00:00:22]}
cxd4 {[%clk 00:14:51]} {[%emt 00:00:21]} 9. Nxd4 {[%clk 00:14:38]} {[%emt
00:00:13]} Bd6 {[%clk 00:14:15]} {[%emt 00:00:39]} 10. Nd2 {[%clk 00:14:17]}
{[%emt 00:00:27]} O-O {[%clk 00:12:45]} {[%emt 00:01:37]} 11. Re1 {[%clk
00:13:29]} {[%emt 00:00:52]} Bb8 {[%clk 00:12:08]} {[%emt 00:00:40]} 12. Bf3
{[%clk 00:13:06]} {[%emt 00:00:30]} Qd6 {[%clk 00:12:00]} {[%emt 00:00:11]} 13.
Nf1 {[%clk 00:12:59]} {[%emt 00:00:14]} Nd5 {[%clk 00:11:29]} {[%emt 00:00:35]}
14. Bg5 {[%clk 00:12:26]} {[%emt 00:00:39]} Ba7 {[%clk 00:10:32]} {[%emt
00:01:01]} 15. Nxc6 {[%clk 00:12:11]} {[%emt 00:00:20]} bxc6 {[%clk 00:10:27]}
{[%emt 00:00:11]} 16. Qd2 {[%clk 00:10:13]} {[%emt 00:02:03]} Qc7 {[%clk
00:09:38]} {[%emt 00:00:53]} 17. Be4 {[%clk 00:09:40]} {[%emt 00:00:38]} f5
{[%clk 00:09:09]} {[%emt 00:00:33]} 18. Bf3 {[%clk 00:09:31]} {[%emt 00:00:15]}
f4 {[%clk 00:07:47]} {[%emt 00:01:27]} 19. c4 {[%clk 00:08:49]} {[%emt
00:00:48]} Nb6 {[%clk 00:07:17]} {[%emt 00:00:34]} 20. Qb4 {[%clk 00:08:01]}
{[%emt 00:00:54]} Rf7 {[%clk 00:05:46]} {[%emt 00:01:35]} 21. Rad1 {[%clk
00:07:26]} {[%emt 00:00:41]} Bb7 {[%clk 00:05:35]} {[%emt 00:00:16]} 22. Rxe6
{[%clk 00:05:28]} {[%emt 00:02:04]} c5 {[%clk 00:05:38]} {[%emt 00:00:02]} 23.
Qc3 {[%clk 00:03:48]} {[%emt 00:01:45]} h6 {[%clk 00:04:28]} {[%emt 00:01:14]}
24. Bxb7 {[%clk 00:02:59]} {[%emt 00:00:54]} Qxb7 {[%clk 00:04:23]} {[%emt
00:00:10]} 25. Bd8 {[%clk 00:02:38]} {[%emt 00:00:26]} Nd7 {[%clk 00:02:52]}
{[%emt 00:01:35]} 26. Re8+ {[%clk 00:02:06]} {[%emt 00:00:38]} Rf8 {[%clk
00:02:31]} {[%emt 00:00:24]} 27. Rxf8+ {[%clk 00:01:31]} {[%emt 00:00:42]} Kxf8
{[%clk 00:02:31]} {[%emt 00:00:06]} 28. Ba5 {[%clk 00:01:29]} {[%emt 00:00:07]}
Kg8 {[%clk 00:01:50]} {[%emt 00:00:45]} 29. Qd2 {[%clk 00:01:24]} {[%emt
00:00:10]} Nf6 {[%clk 00:01:46]} {[%emt 00:00:09]} 30. Bc3 {[%emt 00:01:26]}
Qe7 {[%clk 00:00:51]} 31. Qxf4 {[%clk 00:00:54]} {[%emt 00:00:14]} Bb8 {[%clk
00:00:54]} {[%emt 00:00:02]} 32. Qf3 {[%clk 00:00:44]} {[%emt 00:00:14]} Ra7
{[%clk 00:00:51]} {[%emt 00:00:09]} 33. Ng3 {[%clk 00:00:45]} {[%emt 00:00:04]}
Rc7 {[%clk 00:00:50]} {[%emt 00:00:06]} 34. Re1 {[%clk 00:00:45]} {[%emt
00:00:05]} Qf7 {[%clk 00:00:42]} {[%emt 00:00:12]} 35. h3 {[%clk 00:00:46]}
{[%emt 00:00:05]} Rc8 {[%clk 00:00:45]} {[%emt 00:00:02]} 36. Nf5 {[%clk
00:00:38]} {[%emt 00:00:13]} Re8 {[%clk 00:00:16]} {[%emt 00:00:34]} 37. Rd1
{[%clk 00:00:19]} {[%emt 00:00:24]} Qe6 {[%clk 00:00:09]} {[%emt 00:00:12]} 38.
g3 {[%clk 00:00:08]} {[%emt 00:00:16]} Ne4 {[%clk 00:00:07]} {[%emt 00:00:07]}
39. Bxg7 {[%clk 00:00:09]} {[%emt 00:00:05]} Qf7 {[%clk 00:00:08]} {[%emt
00:00:04]} 40. Nxh6+ {[%emt 00:00:35]} 1-0